bitfinex/quotes_BTCUSD_20220213
["timestamp","ask_amount","ask_price","bid_price","bid_amount"]
[1644774013223,0.061,42265.0,42258.0,2.07889526]
[1644774013421,0.061,42265.0,42258.0,2.29228355]
[1644774013620,0.061,42265.0,42258.0,2.08594218]
[1644774013822,0.061,42265.0,42258.0,1.98594218]
[1644774014075,0.061,42265.0,42258.0,0.73094218]
[1644774014668,0.061,42265.0,42258.0,1.98594218]
[1644774014868,0.061,42265.0,42258.0,2.08594218]
[1644774015068,0.00039257,42261.0,42258.0,2.08594218]
[1644774015270,0.0021,42268.0,42267.0,0.21078514]
[1644774015472,0.0021,42268.0,42267.0,0.54388814]
[1644774020718,0.00218635,42268.0,42267.0,0.54388814]
[1644774022572,0.00743199,42269.0,42268.0,0.333103]
[1644774022774,0.00718635,42269.0,42268.0,0.333103]
[1644774023174,0.00718635,42269.0,42268.0,0.59178467]
[1644774024178,0.00718635,42269.0,42268.0,0.333103]
[1644774027722,0.00718635,42269.0,42268.0,0.573103]
[1644774030080,0.00718635,42269.0,42268.0,0.24]
[1644774031282,0.00718635,42269.0,42268.0,0.003928]
[1644774031981,0.00718635,42269.0,42268.0,0.337031]
[1644774032181,0.00718635,42269.0,42268.0,0.003928]
[1644774033235,0.34028935,42269.0,42268.0,0.003928]
[1644774033432,0.10718635,42269.0,42268.0,0.003928]
[1644774034629,0.00718635,42269.0,42268.0,0.003928]
[1644774035230,0.08636871,42269.0,42268.0,0.003928]
[1644774036880,0.08636871,42269.0,42249.0,0.119]
[1644774036881,1.392291,42268.0,42249.0,0.119]
[1644774037082,0.05,42258.0,42254.0,0.3]
[1644774037273,0.118382,42261.0,42248.0,0.30157089]
[1644774037274,0.168382,42261.0,42248.0,0.30157089]
[1644774037473,0.08439912,42260.0,42251.0,0.06582014]
[1644774037671,0.08439912,42260.0,42252.0,0.3]
[1644774037873,0.18909611,42258.0,42252.0,0.3]
[1644774038073,0.18909611,42258.0,42251.0,0.06582014]
[1644774038273,0.24853275,42258.0,42252.0,0.333103]
[1644774038676,0.24853275,42258.0,42251.0,0.30582014]
[1644774038873,0.24853275,42258.0,42251.0,0.24]
[1644774039077,0.059192,42257.0,42251.0,0.24]
[1644774039274,0.05943764,42257.0,42251.0,0.24]
[1644774039475,0.059194,42256.0,42251.0,0.24]
[1644774039681,0.05943964,42256.0,42251.0,0.235]
[1644774040074,0.11863764,42256.0,42251.0,0.235]
[1644774040321,0.11864264,42256.0,42251.0,0.235]
[1644774040524,0.059195,42255.0,42251.0,0.235]
[1644774042325,0.059196,42254.0,42251.0,0.235]
[1644774042525,0.0592,42253.0,42251.0,0.235]
[1644774042722,0.0592,42253.0,42252.0,0.333103]
[1644774042925,0.00024564,42256.0,42252.0,0.333103]
[1644774043125,0.00024564,42257.0,42252.0,0.333103]
[1644774043324,0.18909611,42258.0,42251.0,0.235]
[1644774043325,0.00024564,42258.0,42251.0,0.235]
[1644774043523,0.00024564,42257.0,42252.0,0.333103]
[1644774043724,0.00024564,42258.0,42253.0,0.333103]
[1644774043924,0.10024564,42259.0,42252.0,0.333103]
[1644774044171,0.05919,42256.0,42252.0,0.333103]
[1644774044371,0.05919,42256.0,42254.0,0.08314834]
[1644774044578,0.05919,42256.0,42255.0,0.333103]
[1644774045171,0.05919,42256.0,42252.0,0.60111708]
[1644774045372,0.00024564,42257.0,42256.0,0.11838]
[1644774045573,0.05943564,42258.0,42256.0,0.11838]
[1644774045774,0.059192,42257.0,42256.0,0.11838]
[1644774051220,0.059192,42257.0,42256.0,0.451483]
[1644774063822,0.059192,42257.0,42256.0,0.11838]
[1644774064023,0.059192,42257.0,42256.0,0.451483]
[1644774064426,0.059185,42259.0,42256.0,0.451483]
[1644774064629,0.00024564,42260.0,42257.0,0.333103]
[1644774064825,0.00039262,42263.0,42257.0,0.333103]
[1644774064826,0.00024564,42262.0,42257.0,0.633103]
[1644774065025,0.00039262,42263.0,42257.0,0.333103]
[1644774065223,0.00024564,42262.0,42257.0,0.333103]
[1644774065423,0.23976231,42268.0,42261.0,0.18997803]
[1644774065424,0.059177,42264.0,42261.0,0.18997803]
[1644774065727,0.00039264,42263.0,42262.0,0.39996633]
[1644774066569,0.05942371,42264.0,42262.0,0.39996633]
[1644774068775,0.00024671,42264.0,42262.0,0.39996633]
[1644774068972,0.059176,42265.0,42262.0,0.39996633]
[1644774069172,0.00024671,42264.0,42262.0,0.39996633]
[1644774069371,0.00014626,42265.0,42262.0,0.39996633]
[1644774069570,0.00014626,42265.0,42262.0,0.333103]
[1644774070173,0.00014626,42265.0,42262.0,0.633103]
[1644774070174,0.00024671,42265.0,42262.0,0.633103]
[1644774070424,0.118357,42268.0,42263.0,0.3]
[1644774070426,0.0003932,42266.0,42263.0,0.3]
[1644774070621,0.0003932,42266.0,42264.0,0.40962171]
[1644774071423,0.00024671,42268.0,42264.0,0.40962171]
[1644774071622,0.00039319,42267.0,42264.0,0.40962171]
[1644774072022,0.00039319,42267.0,42265.0,0.333103]
[1644774072723,0.0006399,42268.0,42265.0,0.333103]
[1644774072921,0.00039319,42268.0,42265.0,0.333103]
[1644774073120,0.0006399,42268.0,42265.0,0.333103]
[1644774073324,0.0006399,42268.0,42265.0,0.59705746]
[1644774073521,0.0006399,42268.0,42266.0,0.26563977]
[1644774073722,0.00024671,42268.0,42267.0,0.333103]
[1644774073921,0.00718635,42269.0,42267.0,0.333103]
[1644774074170,0.00757954,42269.0,42268.0,0.2455833]
[1644774074372,0.00757954,42269.0,42268.0,0.5786863]
[1644774074969,0.00718635,42269.0,42268.0,0.5786863]
[1644774075372,0.05930842,42270.0,42269.0,0.34747569]
[1644774075570,0.05917,42270.0,42269.0,0.34747569]
[1644774076672,0.05917,42270.0,42269.0,0.01437269]
[1644774079525,0.05917,42270.0,42269.0,0.34747569]
[1644774081770,0.05417,42270.0,42269.0,0.34747569]
[1644774082471,0.05417,42270.0,42269.0,0.01437269]
[1644774083071,0.05417,42270.0,42269.0,0.34747569]
[1644774086326,0.05930542,42271.0,42269.0,0.34747569]
[1644774086522,0.00139317,42272.0,42269.0,0.34747569]
[1644774086726,0.00013842,42271.0,42269.0,0.34747569]
[1644774086921,0.00139317,42272.0,42269.0,0.34747569]
[1644774086922,0.00113842,42272.0,42269.0,0.34747569]
[1644774087122,0.00013842,42271.0,42269.0,0.34747569]
[1644774087322,0.001,42272.0,42269.0,0.34747569]
[1644774087520,0.00013842,42271.0,42269.0,0.34747569]
[1644774087722,0.001,42272.0,42269.0,0.34747569]
[1644774089401,0.059168,42271.0,42269.0,0.42645626]
[1644774089603,0.05930642,42271.0,42269.0,0.42645626]
[1644774089802,0.05930642,42271.0,42269.0,0.34747569]
[1644774090211,0.05930642,42271.0,42269.0,0.01437269]
[1644774090807,0.14014735,42271.0,42269.0,0.01437269]
[1644774091005,0.21105163,42270.0,42269.0,0.01437269]
[1644774092403,0.50601281,42270.0,42269.0,0.01437269]
[1644774092821,0.60601281,42270.0,42269.0,0.01437269]
[1644774093922,0.31105163,42270.0,42269.0,0.01437269]
[1644774094722,0.58724176,42270.0,42269.0,0.01437269]
[1644774095227,1.02034476,42270.0,42269.0,0.01437269]
[1644774095428,1.02034476,42270.0,42265.0,0.24]
[1644774095429,1.16838,42269.0,42265.0,0.24]
[1644774095628,0.380403,42268.0,42265.0,0.14939982]
[1644774095827,0.3,42267.0,42265.0,0.14939982]
[1644774096028,0.380403,42266.0,42265.0,0.14939982]
[1644774096229,0.71649085,42266.0,42265.0,0.14939982]
[1644774096424,0.81649085,42266.0,42265.0,0.14939982]
[1644774097080,1.0,42265.0,42256.0,0.11838]
[1644774097281,0.05,42260.0,42256.0,0.11838]
[1644774097479,0.73926957,42259.0,42256.0,0.11838]
[1644774097876,0.88926957,42259.0,42256.0,0.11838]
[1644774098077,0.22078751,42257.0,42256.0,0.11838]
[1644774098277,0.52315014,42257.0,42256.0,0.11838]
[1644774101045,0.206502,42257.0,42256.0,0.11838]
[1644774101445,0.206502,42257.0,42256.0,0.451483]
[1644774101446,0.0473,42257.0,42256.0,0.451483]
[1644774101848,0.0473,42257.0,42256.0,0.11838]
[1644774102645,0.059188,42259.0,42256.0,0.451483]
[1644774102846,0.059188,42259.0,42256.0,0.11838]
[1644774103246,0.059188,42259.0,42257.0,0.333103]
[1644774103845,0.059188,42259.0,42256.0,0.11838]
[1644774104080,0.059188,42259.0,42257.0,0.333103]
[1644774104277,0.059188,42259.0,42258.0,0.07188712]
[1644774105378,0.059188,42261.0,42258.0,0.07188712]
[1644774105379,0.059188,42261.0,42260.0,0.11837599]
[1644774106179,0.118375,42261.0,42260.0,0.11837599]
[1644774108227,0.059187,42261.0,42260.0,0.45147899]
[1644774108425,0.00039661,42263.0,42260.0,0.45147899]
[1644774108626,0.059183,42264.0,42260.0,0.11837599]
[1644774109026,0.00039661,42263.0,42260.0,0.11837599]
[1644774109223,0.05958061,42263.0,42260.0,0.11837599]
[1644774109424,0.059182,42262.0,42260.0,0.11837599]
[1644774109824,0.059182,42262.0,42261.0,0.08983346]
[1644774111680,0.059182,42262.0,42261.0,0.42293646]
[1644774112879,0.059182,42262.0,42261.0,0.08983346]
[1644774113878,0.059182,42262.0,42260.0,0.11837599]
[1644774114279,0.33930352,42262.0,42260.0,0.11837599]
[1644774114479,2.57575565,42261.0,42260.0,0.11837599]
[1644774114883,2.67575565,42261.0,42260.0,0.11837599]
[1644774115181,2.72575565,42261.0,42260.0,0.11837599]
[1644774115425,2.67575565,42261.0,42260.0,0.11837599]
[1644774115824,0.37495751,42261.0,42260.0,0.11837599]
[1644774116227,0.27495751,42261.0,42260.0,0.11837599]
[1644774117428,0.27340783,42261.0,42260.0,0.11837599]
[1644774120177,0.159182,42262.0,42260.0,0.11837599]
[1644774120378,0.059182,42262.0,42260.0,0.11837599]
[1644774122483,0.27328254,42261.0,42260.0,0.11837599]
[1644774123326,0.159182,42262.0,42260.0,0.11837599]
[1644774123929,0.059182,42262.0,42260.0,0.11837599]
[1644774124530,0.159182,42262.0,42260.0,0.11837599]
[1644774124728,0.43635965,42262.0,42260.0,0.11837599]
[1644774124927,0.53635965,42262.0,42260.0,0.11837599]
[1644774125730,0.1,42262.0,42260.0,0.11837599]
[1644774126131,0.23714562,42263.0,42260.0,0.11837599]
[1644774126328,0.059182,42262.0,42260.0,0.11837599]
[1644774128989,0.059182,42262.0,42261.0,0.333103]
[1644774129193,0.1,42264.0,42261.0,0.333103]
[1644774129194,0.05918,42264.0,42261.0,0.333103]
[1644774129394,0.00039662,42263.0,42261.0,0.333103]
[1644774130193,0.05918,42264.0,42261.0,0.333103]
[1644774130432,0.059181,42263.0,42261.0,0.333103]
[1644774131627,0.059181,42263.0,42262.0,0.08797293]
[1644774132028,0.059181,42263.0,42262.0,0.42107593]
[1644774133831,0.059181,42263.0,42262.0,0.08797293]
[1644774137934,0.059181,42263.0,42262.0,0.42107593]
[1644774139336,0.059181,42263.0,42262.0,0.08797293]
[1644774142478,0.451472,42263.0,42260.0,0.11837599]
[1644774142681,0.059192,42261.0,42260.0,0.11837599]
[1644774142879,0.35817573,42261.0,42260.0,0.11837599]
[1644774143280,0.45817573,42261.0,42260.0,0.11837599]
[1644774145926,0.45817573,42261.0,42260.0,0.11825624]
[1644774146329,0.159192,42261.0,42260.0,0.11825624]
[1644774146527,0.1,42261.0,42260.0,0.11825624]
[1644774146728,0.00039661,42263.0,42261.0,0.333103]
[1644774146928,0.00039661,42263.0,42261.0,0.3]
[1644774147129,0.1,42264.0,42261.0,0.3]
[1644774147627,0.236741,42263.0,42261.0,0.3]
[1644774147829,0.5108579,42263.0,42261.0,0.3]
[1644774148228,0.059181,42262.0,42261.0,0.3]
[1644774153128,0.33205603,42262.0,42261.0,0.3]
[1644774153329,0.43205603,42262.0,42261.0,0.3]
[1644774153727,0.159181,42262.0,42261.0,0.3]
[1644774153930,0.159181,42262.0,42261.0,0.33585177]
[1644774154531,0.059181,42262.0,42261.0,0.33585177]
[1644774154932,0.33689638,42262.0,42261.0,0.33585177]
[1644774155332,0.43689638,42262.0,42261.0,0.3]
[1644774157877,0.159181,42262.0,42261.0,0.3]
[1644774158377,0.059181,42262.0,42261.0,0.3]
[1644774158981,0.33893678,42262.0,42261.0,0.3]
[1644774159185,0.67203978,42262.0,42261.0,0.3]
[1644774159479,0.58935363,42262.0,42261.0,0.3]
[1644774159679,0.43893678,42262.0,42261.0,0.3]
[1644774161634,0.159181,42262.0,42261.0,0.3]
[1644774161838,0.3329988,42262.0,42261.0,0.3]
[1644774162233,0.4329988,42262.0,42261.0,0.3]
[1644774162834,0.7661018,42262.0,42261.0,0.3]
[1644774163035,0.8161018,42262.0,42261.0,0.18262526]
[1644774163236,0.9134018,42262.0,42261.0,0.18262526]
[1644774163834,1.06381865,42262.0,42261.0,0.18262526]
[1644774164288,1.06381865,42262.0,42248.0,0.00144528]
[1644774164289,0.059202,42258.0,42248.0,0.00144528]
[1644774164491,0.118403,42259.0,42250.0,0.00015667]
[1644774164492,0.392305,42255.0,42250.0,0.00015667]
[1644774164685,0.0473,42254.0,42248.0,0.00160195]
[1644774164984,0.333103,42253.0,42248.0,0.00160195]
[1644774165182,0.0473,42252.0,42248.0,0.00015667]
[1644774165381,0.0473,42252.0,42239.0,0.00015667]
[1644774165382,0.18900094,42249.0,42239.0,0.00015667]
[1644774165584,0.059211,42247.0,42238.0,0.01515667]
[1644774165781,0.333103,42245.0,42238.0,0.015]
[1644774165980,0.380403,42244.0,42238.0,0.015]
[1644774166181,0.0473,42244.0,42238.0,0.015]
[1644774166487,0.0473,42244.0,42239.0,0.00036093]
[1644774166488,0.24625088,42243.0,42239.0,0.00036093]
[1644774166681,0.059215,42243.0,42239.0,0.0005176]
[1644774166881,0.11843,42243.0,42239.0,0.0005176]
[1644774167084,0.333103,42242.0,42239.0,0.0005176]
[1644774167286,0.0473,42241.0,42239.0,0.0005176]
[1644774167482,0.63810915,42240.0,42239.0,0.00015667]
[1644774167684,2.08727425,42240.0,42238.0,0.01536093]
[1644774167935,0.29579268,42239.0,42238.0,0.01536093]
[1644774168135,0.34309268,42239.0,42238.0,0.01536093]
[1644774168432,0.60431025,42239.0,42238.0,0.01536093]
[1644774168633,0.44309268,42239.0,42238.0,0.01536093]
[1644774168833,0.44309268,42239.0,42238.0,0.015]
[1644774169034,0.50231068,42239.0,42238.0,0.015]
[1644774169639,1.0,42238.0,42237.0,0.00015667]
[1644774169841,1.0,42238.0,42236.0,0.00051761]
[1644774169842,1.480403,42238.0,42236.0,0.00051761]
[1644774170037,0.333103,42237.0,42236.0,0.00015667]
[1644774170236,0.64163978,42237.0,42235.0,0.04]
[1644774170436,0.392338,42236.0,42235.0,0.04]
[1644774170635,0.62428882,42236.0,42235.0,0.04]
[1644774170835,1.2186286,42236.0,42235.0,0.04]
[1644774171684,0.8855256,42236.0,42235.0,0.04]
[1644774171883,1.18669425,42236.0,42235.0,0.04]
[1644774174789,1.18669425,42236.0,42235.0,0.28]
[1644774174790,1.51979725,42236.0,42235.0,0.28]
[1644774175329,0.93035199,42236.0,42235.0,0.28]
[1644774175530,1.00204343,42236.0,42235.0,0.28]
[1644774175731,0.66894043,42236.0,42235.0,0.28]
[1644774175931,0.206535,42236.0,42235.0,0.04]
[1644774176330,0.106535,42236.0,42235.0,0.04]
[1644774176930,0.38867785,42236.0,42235.0,0.04]
[1644774177334,0.206535,42236.0,42235.0,0.04]
[1644774178333,0.106535,42236.0,42235.0,0.04]
[1644774179390,1.0,42235.0,42234.0,0.00015673]
[1644774179585,1.0,42235.0,42227.0,0.00158371]
[1644774179586,1.0473,42235.0,42229.0,0.00015673]
[1644774179786,1.0473,42235.0,42228.0,0.00015673]
[1644774179787,0.177693,42234.0,42228.0,0.00015673]
[1644774179991,0.0473,42233.0,42227.0,0.00015673]
[1644774180187,0.0473,42233.0,42226.0,0.00125673]
[1644774180690,0.059233,42230.0,42226.0,0.00125673]
[1644774180889,0.34798936,42232.0,42231.0,0.12378996]
[1644774181087,0.39528936,42232.0,42231.0,0.12378996]
[1644774181289,0.72839236,42232.0,42231.0,0.12378996]
[1644774181490,0.51375336,42232.0,42231.0,0.12378996]
[1644774181688,0.82970315,42232.0,42231.0,0.12378996]
[1644774182290,0.88893615,42232.0,42231.0,0.12378996]
[1644774182689,1.05017293,42232.0,42231.0,0.12378996]
[1644774182930,0.88893615,42232.0,42231.0,0.12378996]
[1644774183630,1.05017293,42232.0,42231.0,0.12378996]
[1644774184529,0.68371957,42232.0,42231.0,0.12378996]
[1644774184730,0.64741015,42232.0,42231.0,0.12378996]
[1644774184929,0.48617337,42232.0,42231.0,0.12378996]
[1644774185530,0.48617337,42232.0,42231.0,0.34378996]
[1644774185731,0.206533,42232.0,42231.0,0.34378996]
[1644774185931,0.106533,42232.0,42231.0,0.34378996]
[1644774187383,0.7308336,42232.0,42231.0,0.34378996]
[1644774187582,0.3977306,42232.0,42231.0,0.34378996]
[1644774187786,0.65896738,42232.0,42231.0,0.34378996]
[1644774187982,0.4977306,42232.0,42231.0,0.34378996]
[1644774188182,0.206533,42232.0,42231.0,0.34378996]
[1644774188383,0.48557296,42232.0,42231.0,0.34378996]
[1644774188882,0.206533,42232.0,42231.0,0.34378996]
[1644774189281,0.106533,42232.0,42231.0,0.34378996]
[1644774190338,0.059233,42232.0,42231.0,0.34378996]
[1644774190542,0.1,42233.0,42231.0,0.67689296]
[1644774190735,0.26113678,42235.0,42232.0,0.333103]
[1644774190736,0.1,42234.0,42232.0,0.333103]
[1644774190933,0.0999,42235.0,42232.0,0.00015673]
[1644774191136,0.0999,42235.0,42231.0,0.34378996]
[1644774191534,0.0999,42235.0,42232.0,0.333103]
[1644774191732,0.0999,42235.0,42232.0,0.00015673]
[1644774191933,0.0999,42235.0,42231.0,0.34434199]
[1644774192532,0.0999,42235.0,42232.0,0.333103]
[1644774192735,0.0999,42235.0,42232.0,0.00015673]
[1644774192936,0.0999,42235.0,42231.0,0.34434199]
[1644774193135,0.0999,42235.0,42232.0,0.333103]
[1644774193337,0.0999,42235.0,42232.0,0.33325973]
[1644774193735,0.428379,42236.0,42232.0,0.33325973]
[1644774194583,0.428379,42236.0,42233.0,0.05]
[1644774194780,0.428379,42236.0,42234.0,0.333103]
[1644774194979,0.428379,42236.0,42234.0,0.33325973]
[1644774195180,0.428379,42236.0,42234.0,0.333103]
[1644774195583,0.059213,42239.0,42237.0,0.19080404]
[1644774195879,0.059213,42239.0,42237.0,0.333103]
[1644774196279,0.059213,42239.0,42237.0,0.41199073]
[1644774196879,0.059213,42239.0,42237.0,0.41214746]
[1644774197081,0.059208,42241.0,42237.0,0.41214746]
[1644774197281,0.1,42245.0,42237.0,0.41214746]
[1644774197686,0.4897,42247.0,42237.0,0.41214746]
[1644774197933,0.4897,42247.0,42240.0,0.23876439]
[1644774198135,0.4897,42247.0,42241.0,0.333103]
[1644774198333,0.98023216,42255.0,42242.0,0.333103]
[1644774198334,0.059194,42253.0,42242.0,0.333103]
[1644774198541,0.1192,42255.0,42243.0,0.333103]
[1644774198734,0.46119763,42257.0,42243.0,0.33325973]
[1644774198934,0.3,42257.0,42245.0,0.00039522]
[1644774199332,0.3767,42258.0,42245.0,0.00039522]
[1644774199333,0.3767,42258.0,42250.0,0.25409453]
[1644774199534,0.059189,42256.0,42250.0,0.25409453]
[1644774200534,0.059189,42256.0,42251.0,0.08631606]
[1644774200740,0.118382,42256.0,42251.0,0.08631606]
[1644774200932,0.059195,42255.0,42251.0,0.08631606]
[1644774201886,0.059195,42255.0,42252.0,0.333103]
[1644774202084,0.059195,42255.0,42251.0,0.35179357]
[1644774202283,0.059195,42255.0,42251.0,0.08631606]
[1644774202886,0.059195,42255.0,42247.0,0.00040035]
[1644774203193,0.059202,42252.0,42247.0,0.00040035]
[1644774203389,0.059203,42251.0,42247.0,0.00040035]
[1644774203588,0.059203,42251.0,42245.0,0.31752512]
[1644774203784,0.059203,42251.0,42247.0,0.00040033]
[1644774204185,0.059203,42251.0,42249.0,0.07156016]
[1644774204985,0.118407,42251.0,42249.0,0.07156016]
[1644774205187,0.059204,42250.0,42249.0,0.07156016]
[1644774207438,0.059204,42250.0,42249.0,0.29156016]
[1644774208644,0.059204,42250.0,42249.0,0.62466316]
[1644774208842,0.118407,42251.0,42249.0,0.62466316]
[1644774209089,0.118407,42251.0,42250.0,0.59658768]
[1644774209484,0.118391,42255.0,42250.0,0.59658768]
[1644774209485,0.059194,42253.0,42250.0,0.59658768]
[1644774209886,0.059194,42253.0,42251.0,0.198105]
[1644774210288,0.059194,42255.0,42251.0,0.198105]
[1644774210686,0.059191,42255.0,42251.0,0.198105]
[1644774213131,0.059193,42254.0,42251.0,0.198105]
[1644774213332,0.059195,42253.0,42249.0,0.29156016]
[1644774214631,0.118394,42253.0,42249.0,0.29156016]
[1644774215134,0.059197,42251.0,42250.0,0.59216834]
[1644774215431,0.059197,42251.0,42250.0,0.59571691]
[1644774216036,0.059193,42254.0,42252.0,0.20425463]
[1644774216235,0.059193,42254.0,42253.0,0.59377127]
[1644774217087,0.059193,42255.0,42253.0,0.59377127]
[1644774217285,0.059192,42254.0,42253.0,0.59377127]
[1644774218585,0.059192,42254.0,42253.0,0.333103]
[1644774218788,0.118387,42254.0,42251.0,0.17759099]
[1644774218989,0.118387,42254.0,42252.0,0.333103]
[1644774219186,0.118387,42254.0,42251.0,0.17759099]
[1644774221637,0.118387,42254.0,42252.0,0.333103]
[1644774221834,0.118387,42254.0,42251.0,0.17759099]
[1644774228843,0.177586,42254.0,42251.0,0.17759099]
[1644774229047,0.118397,42253.0,42251.0,0.17759099]
[1644774236333,0.118397,42253.0,42252.0,0.333103]
[1644774236537,0.118397,42253.0,42252.0,0.59719464]
[1644774237339,0.118397,42253.0,42252.0,0.59719464]
[1644774237634,0.118397,42253.0,42251.0,0.17759099]
[1644774237834,0.118397,42253.0,42252.0,0.333103]
[1644774239489,0.118399,42253.0,42252.0,0.333103]
[1644774239687,0.118399,42253.0,42251.0,0.17759099]
[1644774239890,0.118399,42253.0,42252.0,0.333103]
[1644774240087,0.118399,42253.0,42251.0,0.17759099]
[1644774240290,0.118399,42253.0,42252.0,0.333103]
[1644774240488,0.118399,42253.0,42251.0,0.17759099]
[1644774240688,0.118399,42253.0,42252.0,0.333103]
[1644774240892,0.118399,42253.0,42251.0,0.17759099]
[1644774241090,0.118399,42253.0,42252.0,0.333103]
[1644774241396,0.118399,42253.0,42251.0,0.17759099]
[1644774245636,0.118399,42253.0,42252.0,0.333103]
[1644774245838,0.118399,42253.0,42251.0,0.17759099]
[1644774248486,0.118399,42253.0,42252.0,0.333103]
[1644774250836,0.336778,42257.0,42252.0,0.333103]
[1644774250837,0.1,42257.0,42253.0,0.35519699]
[1644774251038,0.16118545,42259.0,42254.0,0.333103]
[1644774251339,0.28038545,42260.0,42256.0,0.333103]
[1644774251540,0.16118545,42260.0,42256.0,0.333103]
[1644774251737,0.16118545,42260.0,42257.0,0.21571592]
[1644774251936,0.16118545,42260.0,42258.0,0.59119361]
[1644774252136,0.16118545,42260.0,42258.0,0.59219206]
[1644774252336,0.05955376,42263.0,42258.0,0.59219206]
[1644774252536,0.05955376,42263.0,42258.0,0.25908906]
[1644774252839,0.05955376,42263.0,42257.0,0.21571592]
[1644774253037,0.059179,42263.0,42258.0,0.25994505]
[1644774253237,0.059542,42263.0,42258.0,0.25994505]
[1644774254288,0.059179,42263.0,42258.0,0.25994505]
[1644774254487,0.05932752,42263.0,42262.0,0.08276987]
[1644774254689,0.05932752,42263.0,42262.0,0.12641587]
[1644774255287,0.059179,42263.0,42262.0,0.12641587]
[1644774255688,0.05932652,42265.0,42262.0,0.08276987]
[1644774256089,0.05932652,42265.0,42263.0,0.333004]
[1644774256489,0.05932652,42265.0,42262.0,0.08276987]
[1644774256490,0.059178,42265.0,42262.0,0.08276987]
[1644774257391,0.059178,42265.0,42263.0,0.333004]
[1644774257590,0.059178,42265.0,42262.0,0.08276987]
[1644774258039,0.059178,42265.0,42263.0,0.333004]
[1644774258235,0.059178,42265.0,42262.0,0.08276987]
[1644774258436,0.059178,42265.0,42263.0,0.333004]
[1644774258636,0.059178,42265.0,42262.0,0.08276987]
[1644774258838,0.059178,42265.0,42263.0,0.303004]
[1644774259039,0.059178,42265.0,42262.0,0.08276987]
[1644774259237,0.059178,42265.0,42263.0,0.332985]
[1644774260338,0.118357,42265.0,42263.0,0.332985]
[1644774260541,0.059179,42264.0,42257.0,0.21571592]
[1644774260738,0.059179,42264.0,42258.0,0.332985]
[1644774261598,0.00036391,42263.0,42258.0,0.332985]
[1644774261993,0.059184,42262.0,42258.0,0.332985]
[1644774263292,0.059186,42260.0,42258.0,0.332985]
[1644774263494,0.059186,42259.0,42258.0,0.332985]
[1644774264292,0.059186,42259.0,42258.0,0.552985]
[1644774267542,0.118368,42261.0,42258.0,0.552985]
[1644774267741,0.059183,42261.0,42258.0,0.552985]
[1644774269288,0.0003669,42263.0,42259.0,0.25869536]
[1644774269289,0.0595469,42263.0,42259.0,0.25869536]
[1644774269487,0.0595469,42263.0,42260.0,0.332985]
[1644774269688,0.05918,42263.0,42260.0,0.332985]
[1644774270087,0.11872891,42263.0,42260.0,0.332985]
[1644774270286,0.05954891,42263.0,42260.0,0.332985]
[1644774270488,0.059182,42262.0,42260.0,0.332985]
[1644774271291,0.059182,42262.0,42261.0,0.26178191]
[1644774271491,0.05954594,42263.0,42261.0,0.59476691]
[1644774271690,0.05954594,42263.0,42262.0,0.332985]
[1644774272093,0.059179,42263.0,42262.0,0.332985]
[1644774272393,0.00036693,42265.0,42262.0,0.60892682]
[1644774272593,0.00036693,42265.0,42262.0,0.332985]
[1644774273461,0.059177,42265.0,42262.0,0.332985]
[1644774273660,0.059177,42265.0,42259.0,0.28871915]
[1644774273661,0.059179,42265.0,42259.0,0.28871915]
[1644774274061,0.059179,42265.0,42260.0,0.332985]
[1644774274259,0.059179,42265.0,42259.0,0.28871915]
[1644774274459,0.059179,42265.0,42260.0,0.332985]
[1644774274860,0.00036693,42264.0,42260.0,0.332985]
[1644774275160,0.11873193,42264.0,42260.0,0.332985]
[1644774275360,0.059183,42263.0,42260.0,0.332985]
[1644774276993,0.118366,42263.0,42260.0,0.332985]
[1644774277194,0.059184,42262.0,42260.0,0.332985]
[1644774277392,0.059184,42262.0,42261.0,0.25931182]
[1644774277593,0.059184,42262.0,42261.0,0.59229682]
[1644774279997,0.059184,42262.0,42261.0,0.59222585]
[1644774280443,0.05954593,42264.0,42262.0,0.332985]
[1644774280943,0.05954593,42264.0,42263.0,0.332985]
[1644774281145,0.05954593,42264.0,42258.0,0.48742909]
[1644774281344,0.05954593,42264.0,42259.0,0.5973832]
[1644774281542,0.05954593,42264.0,42259.0,0.332985]
[1644774281745,0.118359,42264.0,42258.0,0.22]
[1644774281944,0.059186,42262.0,42258.0,0.22]
[1644774282142,0.059186,42262.0,42259.0,0.332985]
[1644774282543,0.059186,42262.0,42258.0,0.22]
[1644774282743,0.059189,42261.0,42259.0,0.332985]
[1644774283143,0.059185,42260.0,42258.0,0.22]
[1644774283345,0.059185,42260.0,42259.0,0.332985]
[1644774284194,0.118372,42260.0,42259.0,0.332985]
[1644774284392,0.11797147,42260.0,42259.0,0.332985]
[1644774284793,0.11797147,42260.0,42259.0,0.3324499]
[1644774286897,0.059179,42261.0,42259.0,0.3324499]
[1644774287094,0.059179,42261.0,42260.0,0.26045076]
[1644774287294,0.059179,42261.0,42260.0,0.59343576]
[1644774287952,0.00036694,42263.0,42260.0,0.59343576]
[1644774288151,0.00036694,42263.0,42261.0,0.332997]
[1644774288152,0.05954394,42263.0,42261.0,0.332997]
[1644774288353,0.05954394,42263.0,42261.0,0.59014076]
[1644774288556,0.05954394,42263.0,42262.0,0.332997]
[1644774289153,0.059177,42263.0,42262.0,0.332997]
[1644774292197,0.059177,42263.0,42262.0,0.59755292]
[1644774292996,0.059177,42263.0,42262.0,0.332997]
[1644774301497,0.059177,42263.0,42258.0,0.22]
[1644774301701,0.059177,42263.0,42259.0,0.332997]
[1644774301702,0.177533,42263.0,42259.0,0.332997]
[1644774301903,0.059178,42262.0,42259.0,0.332997]
[1644774303156,0.059178,42261.0,42259.0,0.332997]
[1644774303352,0.118359,42265.0,42261.0,0.11835599]
[1644774303553,0.00013717,42263.0,42261.0,0.11835599]
[1644774303853,2.688e-05,42263.0,42261.0,0.11835599]
[1644774304253,2.688e-05,42263.0,42262.0,0.332997]
[1644774304655,0.118359,42265.0,42261.0,0.11835599]
[1644774305162,0.059178,42263.0,42261.0,0.11835599]
[1644774305360,0.2768644,42262.0,42261.0,0.11835599]
[1644774305557,2.76436358,42262.0,42261.0,0.11835599]